bitfinex-derivatives/quotes_ETHF0:USTF0_20250123
["timestamp","ask_amount","ask_price","bid_price","bid_amount"]
[1737641703282,0.61864,3234.4,3234.3,0.61862]
[1737641704681,0.61864,3234.3,3234.2,3.2078]
[1737641705176,4.56966588,3234.3,3234.2,3.2078]
[1737641705988,3.95102588,3234.3,3234.2,3.2078]
[1737641706283,3.95102588,3234.3,3234.2,3.82646]
[1737641707887,3.95102588,3234.3,3234.2,3.2078]
[1737641708085,4.56966588,3234.3,3234.2,3.2078]
[1737641710383,4.56967588,3234.3,3234.2,0.61866]
[1737641710584,3.95102588,3234.3,3234.2,0.61866]
[1737641710791,4.56966588,3234.3,3234.2,0.61866]
[1737641711087,3.9613769,3234.4,3234.3,0.61864]
[1737641711284,3.05048918,3234.5,3234.3,0.61862]
[1737641711677,3.05048918,3234.5,3234.4,40.8]
[1737641711880,2.43187918,3234.5,3234.4,41.41862]
[1737641712390,3.2078,3234.7,3234.4,40.8]
[1737641712581,3.82637,3234.7,3234.5,0.6186]
[1737641712782,3.97314936,3234.6,3234.5,0.6186]
[1737641713183,3.97314936,3234.7,3234.6,0.61857]
[1737641713388,3.53594398,3234.8,3234.6,0.61857]
[1737641713583,2.91739398,3234.8,3234.4,40.8]
[1737641713784,4.58584633,3234.7,3234.5,0.61859]
[1737641713986,4.58583633,3234.7,3234.6,0.61858]
[1737641714384,2.43649398,3234.8,3234.4,40.8]
[1737641714589,0.0046148,3234.8,3234.7,0.61856]
[1737641714785,0.6231648,3234.8,3234.7,0.61856]
[1737641715288,0.0046148,3234.8,3234.7,0.61856]
[1737641719987,0.61842,3235.5,3234.6,0.25052594]
[1737641720187,0.61844,3235.4,3235.3,0.61844]
[1737641720381,6.50993906,3235.4,3234.7,3.2078]
[1737641720582,0.61855,3234.8,3234.7,3.82636]
[1737641720992,0.61855,3234.8,3234.7,3.2078]
[1737641721197,1.11555,3234.8,3234.7,3.2078]
[1737641721386,5.2232321,3234.8,3234.7,3.2078]
[1737641721594,0.6186,3234.5,3234.4,0.0046365]
[1737641721792,3.05047918,3234.5,3234.4,0.0046365]
[1737641722094,7.13522474,3234.5,3234.4,0.0046365]
[1737641722391,7.54491812,3234.5,3234.4,0.0046365]
[1737641738495,14.9767973,3234.5,3234.4,6.5e-06]
[1737641738698,0.61879,3233.5,3233.4,1.5108]
[1737641738995,3.05066918,3233.5,3233.4,1.5108]
[1737641739293,0.61889,3233.0,3232.9,3.2078]
[1737641739498,2.43187918,3233.0,3232.8,0.5053]
[1737641739696,2.43187918,3233.0,3232.8,1.12422]
[1737641739889,0.61891,3232.9,3232.8,0.5053]
[1737641740701,4.66715483,3232.9,3232.8,0.5053]
[1737641740904,5.07684821,3232.9,3232.8,0.5053]
[1737641741402,5.07646999,3232.9,3232.8,0.5053]
[1737641741593,4.66715483,3232.9,3232.8,0.5053]
[1737641741907,5.07645386,3232.9,3232.8,0.5053]
[1737641742399,5.07645386,3232.9,3232.5,0.0046365]
[1737641742400,0.61897,3232.6,3232.5,0.0046365]
[1737641742602,3.05084918,3232.6,3232.5,0.0046365]
[1737641742789,7.07482142,3232.6,3232.5,0.0046365]
[1737641748201,11.97835142,3232.6,3231.6,40.8]
[1737641748408,2.43187918,3231.7,3231.3,4.7444]
[1737641748595,2.43187918,3231.7,3231.6,0.61916]
[1737641748903,2.43187918,3231.7,3231.6,41.41916]
[1737641749105,6.39758245,3231.7,3231.6,0.61916]
[1737641749299,6.39758245,3231.7,3231.3,4.7444]
[1737641749602,6.39758245,3231.7,3231.6,0.61916]
[1737641749808,2.43187918,3232.0,3231.9,0.6191]
[1737641750303,6.43995638,3232.0,3231.9,0.6191]
[1737641750707,6.43995638,3232.0,3231.4,40.8]
[1737641751005,4.0080772,3232.0,3231.8,0.61911]
[1737641751811,4.6271672,3232.0,3231.8,0.61911]
[1737641752197,0.61909,3232.0,3231.8,0.61911]
[1737641752399,0.61902,3232.3,3231.9,0.61909]
[1737641752603,3.2078,3232.5,3232.0,0.4884]
[1737641752902,0.61906,3232.1,3232.0,0.4884]
[1737641753407,4.57209609,3232.1,3232.0,0.4884]
[1737641753600,6.38491527,3232.1,3231.3,3.7384365]
[1737641753802,2.43187918,3231.7,3231.5,0.4884]
[1737641754304,3.05101918,3231.7,3231.5,1.10757]
[1737641755002,2.43187918,3231.7,3231.6,0.61916]
[1737641758109,2.43187918,3232.0,3231.5,0.4884]
[1737641758310,0.61899,3232.5,3232.4,0.619]
[1737641758512,2.43187918,3232.6,3232.3,0.61902]
[1737641758513,3.05084918,3232.6,3232.3,0.61902]
[1737641758814,3.05084918,3232.6,3232.5,0.61899]
[1737641759014,3.05084918,3232.6,3232.4,0.5177]
[1737641759206,2.43187918,3232.6,3232.4,0.5177]
[1737641759409,3.05085918,3232.6,3232.4,1.1367]
[1737641760013,2.43187918,3232.6,3232.4,0.5177]
[1737641760216,2.43187918,3232.6,3232.5,0.61898]
[1737641760906,0.61893,3232.8,3232.7,0.61895]
[1737641761110,2.43187918,3232.9,3232.5,0.61899]
[1737641761312,4.63889499,3232.7,3232.6,0.4777]
[1737641761610,0.61896,3232.7,3232.6,0.4777]
[1737641761811,4.62005786,3232.7,3232.6,0.4777]
[1737641762919,0.61898,3232.5,3232.4,0.5177]
[1737641763111,2.43187918,3232.6,3232.2,3.2078]
[1737641763308,0.61906,3232.1,3232.0,0.5236]
[1737641763509,0.61904,3232.2,3231.8,3.82692]
[1737641763709,2.43187918,3231.9,3231.8,3.82692]
[1737641764018,3.05097918,3231.9,3231.8,3.2078]
[1737641764615,2.43187918,3231.9,3231.8,3.82692]
[1737641767223,2.43187918,3232.2,3231.8,3.2078]
[1737641767424,0.61903,3232.3,3231.9,0.6191]
[1737641767717,2.43187918,3232.2,3232.0,0.5215]
[1737641768018,4.62075546,3232.1,3232.0,0.5215]
[1737641768607,4.00169546,3232.1,3232.0,1.14058]
[1737641769010,0.61906,3232.1,3232.0,0.5215]
[1737641769214,3.05092918,3232.2,3232.0,1.14058]
[1737641769517,0.61906,3232.1,3232.0,0.5215]
[1737641770121,4.63742592,3232.1,3232.0,0.5215]
[1737641770321,5.05822481,3232.1,3232.0,0.5215]
[1737641771522,4.43916481,3232.1,3231.8,3.2078]
[1737641771725,2.43187918,3231.9,3231.4,3.6826]
[1737641771921,3.05105918,3231.5,3231.4,3.2078]
[1737641772424,0.6192,3231.4,3231.3,0.0046365]
[1737641772625,1.03999889,3231.4,3231.3,0.0046365]
[1737641772817,4.97078974,3231.4,3231.3,0.0046365]
[1737641773216,6.85378974,3231.4,3231.3,0.0046365]
[1737641774324,6.43299085,3231.4,3231.3,0.0046365]
[1737641774525,8.24567003,3231.4,3229.9,1.54867]
[1737641774727,0.61936,3230.6,3230.0,0.61946]
[1737641775224,0.61934,3230.7,3230.1,0.61944]
[1737641775430,0.6194,3230.4,3230.2,40.8]
[1737641775631,3.05128918,3230.3,3230.1,0.00464382]
[1737641775923,0.61943,3230.2,3230.1,0.00464382]
[1737641777419,4.59807079,3230.2,3230.1,0.00464382]
[1737641778126,4.59807079,3230.2,3229.2,0.24900247]
[1737641778127,1.54871,3230.0,3229.2,0.24900247]
[1737641778336,2.43187918,3229.3,3228.8,0.4804]
[1737641778632,0.61968,3228.9,3228.8,0.4804]
[1737641779218,0.61968,3228.9,3228.8,0.72589051]
[1737641779425,0.61968,3228.9,3228.8,0.4804]
[1737641781023,0.61968,3228.9,3228.8,41.2804]
[1737641783422,2.43187918,3229.4,3228.8,41.2804]
[1737641783627,2.43187918,3229.7,3229.2,0.61962]
[1737641783928,0.61959,3229.4,3229.2,0.61962]
[1737641784126,0.61959,3229.4,3229.1,3.2078]
[1737641784432,0.61959,3229.4,3229.2,0.61961]
[1737641784732,0.61955,3229.6,3229.1,3.2078]
[1737641784927,3.2078,3230.0,3229.1,3.2078]
[1737641784928,5.63967918,3230.0,3229.1,3.2078]
[1737641785128,0.61955,3229.6,3229.4,0.61956]
[1737641785333,0.61955,3229.6,3229.5,1.10416]
[1737641786029,0.61955,3229.6,3229.5,41.2846]
[1737641786419,0.61954,3229.6,3229.5,41.90414]
[1737641786624,5.63967918,3230.0,3229.5,41.2846]
[1737641786625,0.61952,3229.7,3229.5,41.2846]
[1737641786826,0.61951,3229.8,3229.6,0.61953]
[1737641787027,0.61951,3229.8,3229.5,41.2846]
[1737641787227,0.61944,3230.2,3229.7,3.2078]
[1737641787434,2.43187918,3230.3,3229.7,3.2078]
[1737641787739,0.6195,3229.8,3229.7,3.82731]
[1737641787930,0.6195,3229.8,3229.7,0.61951]
[1737641788234,0.6195,3229.8,3229.6,0.9992]
[1737641788235,0.61952,3229.7,3229.6,1.61872]
[1737641790039,0.6195,3229.9,3229.8,0.61949]
[1737641791132,0.61952,3229.8,3229.7,0.61951]
[1737641791530,0.61949,3229.9,3229.8,0.61948]
[1737641792237,2.92397918,3230.3,3229.7,3.2078]
[1737641792429,0.61947,3230.0,3229.9,0.61946]
[1737641792626,2.92397918,3230.3,3229.7,3.2078]
[1737641792831,0.6195,3229.9,3229.8,0.61949]
[1737641793234,2.92397918,3230.3,3229.7,3.2078]
[1737641793738,0.61948,3230.0,3229.9,0.61947]
[1737641794737,0.61944,3230.2,3230.1,0.61943]
[1737641795639,0.61948,3230.0,3229.9,0.61946]
[1737641795838,0.61948,3229.9,3229.8,0.61949]
[1737641796035,0.6195,3229.8,3229.7,3.82732]
[1737641796343,0.6195,3229.8,3229.7,3.2078]
[1737641796745,0.6195,3229.8,3229.7,4.07588036]
[1737641797139,2.43187918,3230.0,3229.7,3.45636036]
[1737641797339,0.6195,3229.9,3229.8,0.61948]
[1737641800234,2.43187918,3230.0,3229.7,3.2078]
[1737641800440,0.6195,3229.8,3229.7,3.2078]
[1737641800847,0.6195,3229.8,3229.7,3.82732]
[1737641802054,0.6195,3229.8,3229.7,3.2078]
[1737641802639,0.6195,3229.8,3229.7,3.82732]
[1737641802840,0.6195,3229.8,3229.7,3.2078]
[1737641803848,3.2078,3229.9,3229.5,41.2846]
[1737641804043,0.61958,3229.4,3229.3,3.2078]
[1737641804244,0.61958,3229.4,3229.3,4.07742268]
[1737641804444,0.61958,3229.4,3229.3,44.87742268]
[1737641804849,0.61958,3229.4,3229.3,44.6274]
[1737641805047,0.61958,3229.4,3229.3,40.8]
[1737641807148,0.61958,3229.4,3229.3,41.4196]
[1737641807446,0.61958,3229.4,3229.3,40.8]
[1737641811155,0.61958,3229.4,3229.3,41.4196]
[1737641811356,0.61958,3229.4,3229.3,40.8]
[1737641811558,0.61958,3229.4,3229.3,41.4196]
[1737641811951,0.61958,3229.4,3229.3,40.8]
[1737641813359,2.43187918,3229.6,3228.9,4.54469188]
[1737641813561,0.61965,3229.0,3228.9,4.54469188]
[1737641813857,2.43187918,3229.2,3228.9,44.72503188]
[1737641814057,5.55671261,3229.5,3228.9,44.72503188]
[1737641814058,0.61965,3229.1,3229.0,0.61963]
[1737641815657,0.61965,3229.0,3228.9,45.34470188]
[1737641816356,0.61965,3229.0,3228.9,44.72503188]
[1737641816558,0.61965,3229.0,3228.9,44.4828]
[1737641817757,0.61965,3229.0,3228.9,45.10247]
[1737641819664,0.61965,3229.2,3229.1,0.61961]
[1737641821473,0.61965,3229.0,3228.9,41.89466]
[1737641822564,0.61965,3229.1,3229.0,0.61964]
[1737641826268,0.61965,3229.0,3228.9,41.89466]
[1737641826462,1.10515,3229.0,3228.9,41.89466]
[1737641826663,0.61965,3229.0,3228.9,41.89466]
[1737641827570,0.61965,3229.1,3229.0,0.61964]
[1737641828661,0.61965,3229.0,3228.9,41.89466]
[1737641829064,0.61965,3229.1,3229.0,0.61964]
[1737641830559,0.6196,3229.4,3229.3,0.61958]
[1737641831264,0.6196,3229.4,3229.3,1.11988]
[1737641831866,0.6196,3229.4,3229.3,0.5003]
[1737641833377,0.61965,3229.1,3229.0,0.61964]
[1737641833671,2.43187918,3229.2,3228.9,42.41216]
[1737641833867,0.61965,3229.1,3229.0,0.61964]
[1737641834779,0.61965,3229.1,3229.0,0.61965]
[1737641835867,0.61965,3229.0,3228.9,41.7925]
[1737641836071,0.61967,3228.9,3228.8,3.2078]
[1737641836267,0.61967,3228.9,3228.8,3.82749]
[1737641836868,0.61966,3229.0,3228.9,0.61965]
[1737641837969,0.61966,3229.0,3228.9,41.41965]
[1737641841479,0.61966,3229.0,3228.9,40.8]
[1737641841679,0.61969,3228.8,3228.7,0.25197421]
[1737641841874,0.61973,3228.6,3228.5,0.00464382]
[1737641842079,3.05160918,3228.6,3228.5,40.80464382]
[1737641844691,3.05160918,3228.6,3228.5,0.00464382]
[1737641844692,7.07344858,3228.6,3228.5,0.00464382]
[1737641845076,10.28124858,3228.6,3228.5,0.00464382]
[1737641845279,1.54947,3228.4,3227.9,3.2078]
[1737641845577,3.05172918,3228.0,3227.9,3.2078]
[1737641845777,0.61985,3228.0,3227.9,3.2078]
[1737641846380,3.05172918,3228.0,3227.9,3.2078]
[1737641846684,2.43187918,3228.0,3227.7,0.4863]
[1737641846882,0.61988,3227.9,3227.8,0.61987]
[1737641848192,2.43187918,3228.0,3227.7,41.2863]
[1737641848485,2.43187918,3228.0,3227.7,40.8]
[1737641848486,0.61988,3227.8,3227.7,40.8]
[1737641849680,1.5198,3227.9,3227.6,0.00310075]
[1737641849876,3.05177918,3227.7,3227.6,0.00310075]
[1737641850393,4.58988705,3227.7,3227.6,0.00310075]
[1737641857086,0.6199,3227.7,3227.6,0.00310075]
[1737641857593,4.57209535,3227.7,3227.6,0.00310075]
[1737641863796,0.6199,3227.7,3227.6,0.00310075]
[1737641864489,0.6199,3227.7,3227.6,40.80310075]
[1737641866994,0.6199,3227.7,3227.6,0.00310075]
[1737641870694,4.61430013,3227.7,3227.6,0.00310075]
[1737641870899,5.02238939,3227.7,3227.6,0.00310075]
[1737641871399,5.02238939,3227.7,3227.6,7.5e-07]
[1737641871990,10.02238939,3227.7,3227.6,7.5e-07]
[1737641872193,9.40248939,3227.7,3226.4,1.5252]
[1737641872398,0.62017,3226.3,3226.2,3.2078]
[1737641872998,2.43187918,3226.7,3226.2,3.2078]
[1737641873189,2.43187918,3226.7,3226.3,1.5141]
[1737641873493,0.62015,3226.4,3226.3,1.5141]
[1737641873693,3.98215918,3226.7,3226.2,3.2078]
[1737641873891,0.62017,3226.3,3226.2,3.2078]
[1737641875990,4.58215696,3226.3,3226.2,3.2078]
[1737641876188,0.62017,3226.3,3226.2,3.2078]
[1737641876793,4.69032595,3226.3,3226.2,3.2078]
[1737641877194,4.07015595,3226.3,3225.9,0.9906]
[1737641877391,2.43187918,3226.0,3225.6,3.2078]
[1737641877802,2.43187918,3226.0,3225.7,0.5185]
[1737641878000,4.12213043,3225.9,3225.7,0.5185]
[1737641878196,0.62027,3225.8,3225.7,0.5185]
[1737641878701,0.62027,3225.8,3225.7,1.0238]
[1737641879101,0.62027,3225.8,3223.3,1.875]
[1737641879102,7.25849088,3225.8,3224.7,3.2078]
[1737641879305,3.05224918,3225.3,3224.7,4.2316]
[1737641879704,0.62037,3225.3,3224.7,4.2316]
[1737641879902,0.62037,3225.3,3224.8,0.2434201]
[1737641880100,2.43187918,3225.6,3225.4,0.62033]
[1737641880308,0.6203,3225.7,3225.5,4.2209]
[1737641880602,2.43187918,3225.9,3225.6,0.4784]
[1737641880795,0.62027,3225.8,3225.7,0.62028]
[1737641881002,0.62028,3225.8,3225.7,0.62027]
[1737641881199,0.62025,3225.9,3225.8,0.62026]
[1737641881502,0.62025,3225.9,3225.8,41.42027]
[1737641881690,4.02754134,3226.1,3225.8,40.8]
[1737641881896,3.43227918,3226.5,3225.9,3.2078]
[1737641882097,2.43187918,3226.5,3225.9,3.2078]
[1737641882404,0.6202,3226.2,3226.0,0.5078]
[1737641882605,0.62021,3226.1,3226.0,0.5078]
[1737641882801,4.59634778,3226.1,3226.0,0.5078]
[1737641883099,0.62021,3226.1,3226.0,0.5078]
[1737641885008,0.6202,3226.2,3226.1,0.62021]
[1737641885306,0.62014,3226.5,3226.4,0.62014]
[1737641885509,2.941123,3226.8,3226.2,3.2078]
[1737641885696,2.436523,3226.8,3226.3,0.4772]
[1737641885900,3.98270268,3226.7,3226.3,0.4772]
[1737641886409,0.6201,3226.7,3226.6,0.62009]
[1737641886711,0.00464382,3226.8,3226.7,0.62009]
[1737641887007,0.00464382,3226.8,3226.7,1.09539]
[1737641887207,3.2078,3227.5,3226.7,0.4753]
[1737641887403,3.2078,3227.5,3227.0,3.2078]
[1737641887596,0.61996,3227.4,3227.1,0.4772]
[1737641887799,0.61996,3227.4,3227.2,0.62]
[1737641887800,0.61998,3227.4,3227.2,0.62]
[1737641887995,0.61998,3227.4,3227.2,1.0953]
[1737641888306,0.61995,3227.5,3227.4,0.61995]
[1737641888506,0.61995,3227.5,3227.2,0.4753]
[1737641888808,0.00464382,3227.6,3227.2,0.4753]
[1737641889209,0.61995,3227.5,3227.4,0.61996]
[1737641889410,0.61995,3227.5,3227.4,3.82776]
[1737641889613,0.00464382,3227.6,3227.4,3.2078]
[1737641890004,0.61994,3227.5,3227.4,3.82774]
[1737641890409,0.61994,3227.5,3227.4,3.82775]
[1737641891207,0.00464382,3227.6,3227.4,3.82775]
[1737641891208,0.62457382,3227.6,3227.5,0.61994]
[1737641891414,0.00464382,3227.6,3227.5,0.61994]
[1737641891709,0.00464382,3227.6,3227.4,3.2078]
[1737641891911,0.61994,3227.5,3227.4,3.82775]
[1737641892502,0.00464382,3227.6,3227.4,3.2078]
[1737641892702,0.61986,3228.0,3227.4,3.2078]
[1737641893109,0.61986,3228.0,3227.8,0.61987]
[1737641893309,3.2078,3228.1,3227.9,0.4846]
[1737641893806,3.2078,3228.1,3228.0,0.61985]
[1737641894005,0.00464382,3228.3,3228.0,0.5133]
[1737641894206,0.61983,3228.1,3228.0,0.5133]
[1737641894408,0.61985,3228.0,3227.9,0.4846]
[1737641894611,0.61994,3227.6,3227.5,0.4846]
[1737641894804,2.43187918,3227.8,3227.5,0.4846]
[1737641895008,0.61991,3227.7,3227.5,1.10453]
[1737641895308,0.61989,3227.8,3227.5,0.4846]
[1737641895517,0.6199,3227.7,3227.5,1.10453]
[1737641895705,2.43187918,3228.1,3227.5,0.4846]
[1737641895906,0.61989,3227.8,3227.7,0.61989]
[1737641896102,2.43187918,3228.1,3227.5,0.4846]
[1737641896411,2.43187918,3228.1,3227.8,0.61988]
[1737641896412,0.61988,3227.9,3227.8,0.61988]
[1737641897907,0.61981,3228.2,3227.9,0.61987]
[1737641898114,0.61981,3228.2,3228.1,0.61983]
[1737641899408,0.61983,3228.1,3228.0,4.2229]
[1737641899609,3.05170918,3228.1,3228.0,3.2078]
[1737641900511,3.05170918,3228.1,3228.0,3.82765]
[1737641900512,0.61983,3228.1,3228.0,3.82765]
[1737641900709,0.00464382,3228.3,3228.0,3.2078]
[1737641901012,0.61983,3228.1,3228.0,3.2078]
[1737641901205,3.05170918,3228.1,3228.0,3.2078]
[1737641903110,3.05170918,3228.1,3228.0,3.82765]
[1737641903111,0.61983,3228.1,3228.0,3.82765]
[1737641904021,0.61983,3228.1,3228.0,3.2078]
[1737641904812,0.61983,3228.1,3228.0,3.82765]
[1737641905818,0.00464382,3228.3,3228.0,3.2078]
[1737641906021,0.61983,3228.2,3228.1,0.61981]
[1737641906421,0.62445382,3228.3,3228.2,0.61981]
[1737641906920,0.61981,3228.2,3228.1,0.5145]
[1737641907712,0.61981,3228.2,3228.1,1.13433]
[1737641908122,0.61981,3228.2,3228.0,3.2078]
[1737641908123,0.00464382,3228.3,3228.0,3.2078]
[1737641908319,0.61983,3228.1,3228.0,3.82764]
[1737641910726,0.62445382,3228.3,3228.2,0.61981]
[1737641911821,0.61972,3228.7,3228.6,0.61973]
[1737641912131,0.61969,3228.9,3228.7,0.61971]
[1737641912424,2.93137918,3229.0,3228.9,0.61967]
[1737641912425,3.55105918,3229.0,3228.9,0.61967]
[1737641912625,2.43187918,3229.0,3228.8,0.9753]
[1737641912827,0.61972,3228.8,3228.7,0.61969]
[1737641913826,0.61968,3228.9,3228.8,0.61967]
[1737641914423,2.43187918,3229.0,3228.6,40.80464382]
[1737641914830,0.61971,3228.7,3228.6,41.42436382]
[1737641915217,3.05158918,3228.7,3228.6,0.00464382]
[1737641915524,10.26717607,3228.7,3228.6,0.00464382]
[1737641916019,10.6752356,3228.7,3228.6,0.00464382]
[1737641916429,10.26717607,3228.7,3228.6,0.00464382]
[1737641918433,7.05937607,3228.7,3228.6,0.00464382]
[1737641918930,7.05937607,3228.7,3228.6,0.62437382]
[1737641919121,7.05937607,3228.7,3228.6,0.00464382]
[1737641919326,7.05937607,3228.7,3228.6,0.62437382]
[1737641920224,6.43966607,3228.7,3228.6,0.62437382]
[1737641920532,0.6197,3228.8,3228.7,0.61969]
[1737641921023,0.6197,3228.8,3228.7,1.13329]
[1737641924035,0.6197,3228.8,3228.7,0.5136]
[1737641924533,0.6197,3228.8,3228.7,1.13331]
[1737641926326,0.6197,3228.8,3228.7,0.5136]
[1737641926538,0.6197,3228.8,3228.7,1.13331]
[1737641926732,0.6197,3228.8,3228.7,0.5136]
[1737641927939,0.6197,3228.8,3228.7,1.13331]
[1737641928622,5.27312382,3229.2,3228.7,1.13331]
[1737641928623,0.61968,3229.0,3228.9,0.61965]
[1737641929833,3.21244382,3229.2,3228.7,0.5136]
[1737641930039,3.21244382,3229.2,3229.0,0.61964]
[1737641930040,0.61965,3229.1,3229.0,0.61964]
[1737641932734,0.00464382,3229.2,3228.9,3.45162315]
[1737641932932,0.00464382,3229.2,3229.1,0.61964]
[1737641933236,3.2078,3230.1,3229.0,2.43187918]
[1737641933237,4.6824,3230.1,3229.0,2.43187918]
[1737641933437,4.6824,3230.1,3229.5,3.2078]
[1737641933637,0.6195,3229.9,3229.8,0.61949]
[1737641933837,4.6824,3230.1,3229.7,0.5033]
[1737641934027,0.61946,3230.0,3229.9,0.61947]
[1737641934435,0.6195,3229.9,3229.8,0.61949]
[1737641934638,0.6195,3229.8,3229.7,1.62211]
[1737641936639,0.6195,3229.8,3229.7,1.12281]
[1737641938942,3.05137918,3229.9,3229.8,0.6195]
[1737641939145,2.43187918,3229.9,3229.7,0.5033]
[1737641939342,0.6195,3229.8,3229.7,1.12281]
[1737641940249,0.61948,3230.0,3229.9,0.61947]
[1737641940541,0.61949,3230.0,3229.9,0.61947]
[1737641940846,0.6195,3229.9,3229.8,0.61949]
[1737641941544,2.43187918,3229.9,3229.1,44.0078]
[1737641941738,0.61962,3229.2,3229.1,3.2078]
[1737641941937,3.05149918,3229.2,3229.1,3.2078]
[1737641944042,2.43187918,3229.5,3229.1,3.2078]
[1737641944349,0.61959,3229.4,3229.3,0.61958]
[1737641944653,0.61956,3229.6,3229.5,0.61954]
[1737641944841,0.61955,3229.6,3229.5,0.61953]
[1737641945242,2.93767918,3229.8,3229.4,0.4918]
[1737641945443,0.61956,3229.5,3229.4,1.11137]
[1737641947848,2.93767918,3229.8,3229.4,1.11137]
[1737641947849,2.93767918,3229.8,3229.4,0.4918]
[1737641948046,0.61954,3229.6,3229.5,0.61953]
[1737641948351,0.61951,3229.8,3229.7,0.6195]
[1737641948553,0.61948,3230.0,3229.9,0.61947]
[1737641948943,3.41387918,3230.1,3229.5,4.75668]
[1737641949141,0.61952,3229.8,3229.7,0.6195]
[1737641949747,3.41387918,3230.1,3229.5,3.2078]
[1737641950056,0.6195,3229.9,3229.8,0.61948]
[1737641950959,3.41387918,3230.1,3229.5,3.2078]
[1737641950960,0.62408382,3230.2,3230.1,0.61944]
[1737641951455,0.00464382,3230.2,3229.9,3.2078]
[1737641951643,0.61946,3230.1,3230.0,1.14385]
[1737641952750,0.61946,3230.0,3229.9,3.82727]
[1737641952951,0.61946,3230.1,3230.0,0.61945]
[1737641954564,0.00464382,3230.2,3230.1,0.61944]
[1737641955259,0.00464382,3230.2,3230.1,41.41944]
[1737641956558,0.00464382,3230.2,3230.1,41.92674]
[1737641958751,0.00464382,3230.2,3230.1,42.17642645]
[1737641960361,0.00464382,3230.2,3230.1,1.37642645]
[1737641972263,0.61946,3230.0,3229.9,3.2078]
[1737641972454,0.61957,3229.5,3229.4,0.61956]
[1737641972658,0.61957,3229.5,3229.4,40.8]
[1737641972865,3.98081918,3229.5,3228.9,3.2078]
[1737641973167,0.61965,3229.0,3228.9,3.2078]
[1737641973365,0.61965,3229.0,3228.9,44.0078]
[1737641973766,0.61971,3228.7,3228.5,3.2078]
[1737641975156,0.61971,3228.7,3228.4,40.8]
[1737641975463,0.61971,3228.7,3228.1,0.86972975]
[1737641975663,0.61971,3228.7,3228.1,0.24990975]
[1737641975866,3.82751,3228.7,3228.2,40.8]
[1737641976068,7.92285241,3228.7,3227.9,0.5049]
[1737641976770,0.6199,3227.7,3227.6,3.2078]
[1737641976968,3.05177918,3227.7,3227.6,3.2078]
[1737641977165,7.14543679,3227.7,3227.6,3.2078]
[1737641977767,7.14543679,3227.7,3227.4,0.24743687]
[1737641977768,0.61994,3227.5,3227.4,0.24743687]
[1737641977968,0.61994,3227.5,3227.3,0.00464382]
[1737641978271,3.05183918,3227.4,3227.3,0.00464382]
[1737641979665,7.053359,3227.4,3227.3,0.00464382]
[1737641980673,0.61996,3227.4,3227.3,0.00464382]
[1737641981068,0.486,3227.6,3227.3,0.00464382]
[1737641981372,0.62450382,3228.0,3227.6,0.61991]
[1737641981573,0.00464382,3228.0,3227.5,3.2078]
[1737641981773,0.62450382,3228.0,3227.5,3.2078]
[1737641981974,0.62450382,3228.0,3227.7,0.61989]
[1737641982378,0.62451382,3228.0,3227.6,0.61992]
[1737641982678,0.00464382,3228.0,3227.5,3.2078]
[1737641982879,0.61979,3228.3,3227.5,7.18952918]
[1737641983072,3.82758,3228.4,3227.5,7.18952918]
[1737641983266,3.82758,3228.4,3228.1,0.61982]
[1737641983477,3.82758,3228.4,3227.9,0.61986]
[1737641983478,0.61982,3228.2,3227.9,0.61986]
[1737641983974,0.61982,3228.2,3227.9,0.61985]
[1737641984370,0.61982,3228.2,3228.0,0.61984]
[1737641984680,2.436523,3228.4,3228.0,0.61984]
[1737641984879,2.436523,3228.4,3228.1,40.8]
[1737641985476,0.61979,3228.3,3228.1,40.8]
[1737641985676,2.436523,3228.4,3228.1,40.8]
[1737641985883,0.6198,3228.3,3228.1,40.8]
[1737641986380,2.436523,3228.4,3228.1,40.8]
[1737641986579,0.61979,3228.3,3228.1,41.41982]
[1737641987082,0.61979,3228.3,3228.1,40.8]
[1737641987277,0.61979,3228.3,3228.1,41.41982]
[1737641988381,2.436523,3228.4,3228.1,40.8]
[1737641988786,0.6198,3228.3,3228.1,41.41982]
[1737641989080,2.436523,3228.4,3228.2,0.6198]
[1737641989081,3.056303,3228.4,3228.2,0.6198]
[1737641989483,0.62442382,3228.4,3228.2,0.6198]
[1737641989689,0.62442382,3228.4,3228.1,40.8]
[1737641989886,0.00464382,3228.4,3228.3,0.61979]
[1737641990783,0.62441382,3228.4,3228.3,0.61979]
[1737641990991,0.61979,3228.3,3228.2,0.61979]
[1737641991180,0.00464382,3228.4,3228.3,0.61979]
[1737641991181,0.62442382,3228.4,3228.3,0.61979]
[1737641992384,0.61981,3228.2,3228.1,0.4813]
[1737641992784,0.61981,3228.2,3228.1,1.10113]
[1737641993992,0.6198,3228.3,3228.2,0.6198]
[1737641994194,0.61981,3228.2,3228.1,1.10112]
[1737641994388,0.61981,3228.2,3228.1,0.4813]
[1737641995091,0.61981,3228.2,3228.1,1.10113]
[1737641995893,0.61981,3228.2,3228.1,0.4813]
[1737641999995,0.61981,3228.2,3228.1,1.10113]
[1737642000887,0.61981,3228.2,3228.1,0.4813]
[1737642001088,0.61985,3228.0,3227.9,3.2078]
[1737642001296,0.61992,3227.6,3227.5,3.2078]
[1737642003497,2.43187918,3228.0,3227.5,3.2078]
[1737642003696,0.61992,3227.6,3227.5,3.82773]
[1737642004094,0.61992,3227.6,3227.5,3.2078]
[1737642004901,0.61992,3227.6,3227.5,3.82774]
[1737642005204,0.61992,3227.6,3227.5,3.2078]
[1737642006201,4.65496685,3227.6,3227.5,3.2078]
[1737642007700,0.61996,3227.4,3227.3,0.00464382]
[1737642007897,3.05183918,3227.4,3227.3,0.00464382]
[1737642008102,7.09804581,3227.4,3227.3,0.00464382]
[1737642012007,7.93184883,3227.4,3227.3,0.00464382]
[1737642012215,12.93184883,3227.4,3227.3,0.00464382]
[1737642012397,12.93184883,3227.4,3226.4,0.87251321]